Workbook

Sheet 1
A1: Школа | B1: ГБОУ "Татарско -Елтанская школа -интернат для детей с ОВЗ" | E1: Отд./корп | I1: День | J1: 2025-02-02
A3: Прием пищи | B3: Раздел | C3: № рец. | D3: Блюдо | E3: Выход, г | F3: Цена | G3: Калорийность | H3: Белки | I3: Жиры | J3: Углеводы | M3: ,
A4: Завтрак | B4: гор.блюдо | D4: каша молочная манная | E4: 200 | F4: 11.19 | G4: 251 | H4: 6.11 | I4: 10.7 | J4: 32.6
B5: гор.напиток | D5: какао с молокомс молоком | E5: 200 | F5: 14.56 | G5: 125 | H5: 3.78 | I5: 0.67 | J5: 26
B6: хлеб | D6: бутерброд с маслом и сыром | E6: 30*20*20 | F6: 15.16 | G6: 293 | H6: 6.66 | I6: 22.5 | J6: 15.2
B7: хлеб | D7: хлеб пшеничный | E7: 70 | F7: 4.72 | G7: 164 | H7: 4.72 | I7: 0.57 | J7: 35.9
F8: =SUM(F4:F7) -> 45.63 | G8: =SUM(G4:G7) -> 833.2 | H8: =SUM(H4:H7) -> 21.27 | I8: =SUM(I4:I7) -> 34.44 | J8: =SUM(J4:J7) -> 109.7
B9: фрукты | D9: яблоко | E9: 120 | F9: 12.60 | G9: 141 | H9: 2.26 | I9: 0.76 | J9: 28.5
B10: сок | D10: сок фруктовый | E10: 200 | F10: 12.80 | G10: 84.8 | H10: 1 | I10: 0 | J10: 20
B11: кондит.изд | D11: пряник | E11: 30 | F11: 3.86 | G11: 190.17 | H11: 6.32 | I11: 3.77 | J11: 15.12
F12: =SUM(F9:F11) -> 29.26 | G12: =SUM(G9:G11) -> 416 | H12: =SUM(H9:H11) -> 9.58 | I12: =SUM(I9:I11) -> 4.53 | J12: =SUM(J9:J11) -> 63.82
A13: Обед | B13: закуска | D13: салат из свеклы отварной | E13: 60 | F13: 5.73 | G13: 56 | H13: 0.86 | I13: 3.65 | J13: 5.02
B14: 1 блюдо | D14: суп картофельный гороховая м*к бульоне | E14: 200*15 | F14: 11.17 | G14: 135.5 | H14: 7.8 | I14: 7.1 | J14: 13.4
B15: 2 блюда | D15: плов из говядины | E15: 200 | F15: 25.32 | G15: 436 | H15: 16 | I15: 21.3 | J15: 34
B17: гор.напиток | D17: копмот из сухофруктов | E17: 200 | F17: 2.47 | G17: 158 | H17: 0.95 | I17: 0 | J17: 37.14
B18: хлеб пшен. | D18: хлеб пшеничный | E18: 50 | F18: 2.65 | G18: 117 | H18: 3 | I18: 0 | J18: 25
B19: хлеб черн. | D19: хлеб ржаной | E19: 100 | F19: 5.50 | G19: 228 | H19: 5.56 | I19: 1.13 | J19: 49
F21: =SUM(F13:F20) -> 52.84 | G21: =SUM(G13:G20) -> 1131 | H21: =SUM(H13:H20) -> 34.55 | I21: =SUM(I13:I20) -> 33.58 | J21: =SUM(J13:J20) -> 163.56
A22: Полдник | B22: выпечка | D22: блины | E22: 100 | F22: 13.56 | G22: 255.2 | H22: 3.3 | I22: 10 | J22: 36.6
B23: гор.напиток | D23: чай с лимоном | E23: 200 | F23: 1.87 | G23: 28 | H23: 4.51 | I23: 1.14 | J23: 7.71
B24: фрукты | D24: яблоко | E24: 150 | F24: 12.80 | G24: 141 | H24: 2.26 | I24: 0.76 | J24: 28.5
F25: =SUM(F22:F24) -> 28.23 | G25: =SUM(G22:G24) -> 424 | H25: =SUM(H22:H24) -> 10.07 | I25: =SUM(I22:I24) -> 11.9 | J25: =SUM(J22:J24) -> 72.81
A26: Ужин | B26: закуска | D26: салат из капусты с яблоками | E26: 60 | F26: 5.62 | G26: 50 | H26: 0.6 | I26: 2.9 | J26: 5.2
B27: 2 блюда | D27: рагу из птицы | E27: 150 | F27: 38.23 | G27: 95.4 | H27: 2 | I27: 3.6 | J27: 13.8
B28: гарнир
B29: гор.напиток | D29: чай с молоком | E29: 200 | F29: 2.47 | G29: 86 | H29: 1.4 | I29: 1.6 | J29: 16.4
B30: хлеб белый | D30: хлеб пшеничный | E30: 50 | F30: 2.65 | G30: 117 | H30: 3.38 | I30: 0.41 | J30: 25.30
B31: кисломолоч | D31: кефир | E31: 200 | F31: 19.31 | G31: 106 | H31: 5.8 | I31: 5 | J31: 8
B33: хлеб | D33: хлеб ржаной | E33: 50 | F33: 2.75 | G33: 114 | H33: 2.78 | I33: 0.56 | J33: 24.7
F34: =SUM(F26:F33) -> 71.03 | G34: =SUM(G26:G33) -> 569 | H34: =SUM(H26:H33) -> 15.96 | I34: =SUM(I26:I33) -> 14.07 | J34: =SUM(J26:J33) -> 93.4
F35: =SUM(F34,F25,F21,F12,F8) -> 226.99 | G35: =SUM(G34,G25,G21,G12,G8) -> 3373 | H35: =SUM(H8)+H12+H21+H25+H34 -> 91.43 | I35: =SUM(I8)+I12+I21+I25+I34 -> 98.52 | J35: =SUM(J8+J12+J21+J25+J34) -> 503.29
